fUST/lending_fUST_20250424
["ID","MTS","AMOUNT","RATE_DAILY","PERIOD"]
[358822808,1745471438848,-800.0,0.00021755,2]
[358822810,1745471438859,-161.811813,0.00021756,7]
[358822812,1745471438869,-800.0,0.00021764,2]
[358822814,1745471438879,-800.0,0.00021764,2]
[358822816,1745471438891,-1065.67993598,0.00021767,2]
[358822818,1745471438900,-800.0,0.00021771,2]
[358822820,1745471438911,-1065.67993598,0.00021792,2]
[358822822,1745471438922,-15851.57918155,0.00021799,2]
[358822824,1745471438932,-151.0,0.00021804,2]
[358822826,1745471438941,-151.0,0.00021804,2]
[358822828,1745471438952,-314.62,0.00021807,3]
[358822830,1745471438966,-800.0,0.00021807,2]
[358822832,1745471438977,-420.89490186,0.00021813,2]
[358822835,1745471438987,-500.0,0.00021816,2]
[358822836,1745471438996,-500.0,0.00021816,2]
[358822838,1745471439007,-160.0,0.00021816,2]
[358822839,1745471439016,-269.5589256,0.00021816,2]
[358822840,1745471439026,-12576.49486522,0.00021816,3]
[358822841,1745471439039,-840.0731918,0.00021816,3]
[358822842,1745471439049,-89570.76607646,0.00021816,2]
[358822843,1745471439058,-18730.17844249,0.00021816,3]
[358822844,1745471439067,-160.0,0.00021816,3]
[358822845,1745471439077,-239752.44633948,0.00021817,2]
[358822851,1745471441173,-1013.9836,0.00021817,2]
[358822852,1745471441201,-331.0,0.00021817,2]
[358822854,1745471444275,-993.24590438,0.00021817,2]
[358822858,1745471446999,-3056.33021581,0.00021817,2]
[358822859,1745471447013,-24446.71406792,0.00021817,2]
[358822860,1745471447026,-4549.99999025,0.00021817,2]
[358822861,1745471447038,-545.24708926,0.00021817,2]
[358822862,1745471447050,-2954.79151319,0.00021817,2]
[358822863,1745471447062,-550.73773191,0.00021817,2]
[358822864,1745471447073,-928.32,0.00021817,2]
[358822865,1745471447365,-23381.1912778,0.00021817,2]
[358822866,1745471447377,-5722.2042792,0.00021817,2]
[358822928,1745472520435,4044.65702102,0.000175,4]
[358822947,1745472631821,-300.0,0.00018755,2]
[358822948,1745472631831,-1200.0,0.00018755,2]
[358822949,1745472631842,-24900.0,0.00018756,2]
[358822950,1745472631852,-558.33841879,0.000189,2]
[358822951,1745472631863,-191.37972228,0.00019606,2]
[358822952,1745472631873,-196.9,0.000197,2]
[358822953,1745472631882,-217.29722144,0.00019704,2]
[358822954,1745472631892,-157.51462221,0.00019704,2]
[358822955,1745472631903,-500.0,0.00019704,2]
[358822956,1745472631913,-500.0,0.00019704,2]
[358822958,1745472631922,-500.0,0.00019704,2]
[358822960,1745472631932,-500.0,0.00019704,2]
[358822961,1745472631941,-450.65351768,0.00019704,2]
[358822962,1745472631950,-152.76133446,0.00019704,2]
[358822963,1745472631960,-500.0,0.00019704,2]
[358822965,1745472631970,-500.0,0.00019704,2]
[358822967,1745472631979,-500.0,0.00019704,2]
[358822968,1745472631989,-500.0,0.00019704,2]
[358822969,1745472631998,-500.0,0.00019704,2]
[358822970,1745472632007,-500.0,0.00019704,2]
[358822971,1745472632016,-500.0,0.00019704,2]
[358822972,1745472632026,-501.70240891,0.00019704,2]
[358822973,1745472632035,-500.0,0.00019704,2]
[358822974,1745472632045,-500.0,0.00019704,2]
[358822975,1745472632054,-500.0,0.00019704,2]
[358822976,1745472632064,-500.0,0.00019704,2]
[358822977,1745472632073,-500.0,0.00019704,2]
[358822978,1745472632083,-1000.0,0.00019717,2]
[358822979,1745472632093,-250.0,0.00019717,2]
[358822980,1745472632103,-10777.197702,0.0001999,2]
[358822981,1745472632113,-301.99999905,0.0002,120]
[358822982,1745472632123,-200000.0,0.0002,2]
[358822983,1745472632133,-148064.28622866,0.0002,2]
[358822984,1745472632143,-500.0,0.0002,2]
[358822985,1745472632153,-543.01261962,0.0002,2]
[358822986,1745472632163,-830.06149666,0.00020069,2]
[358822987,1745472632173,-151.0,0.00020157,2]
[358822988,1745472632184,-35551.2199579,0.00020169,2]
[358822989,1745472632193,-1845.89701802,0.0002031,2]
[358822990,1745472632205,-235.4190737,0.0002041,2]
[358822991,1745472632214,-420.0,0.00020448,2]
[358822992,1745472632224,-1680.0,0.00020547,2]
[358822993,1745472632234,-15851.57918055,0.00020672,2]
[358822994,1745472632244,-151.0,0.00020821,2]
[358822995,1745472632254,-207.4,0.00020821,2]
[358822996,1745472632263,-500.0,0.00021,2]
[358822997,1745472632273,-500.0,0.00021,2]
[358822998,1745472632282,-151.0,0.00021369,2]
[358822999,1745472632292,-316.36818153,0.00021463,2]
[358823000,1745472632302,-151.0,0.00021526,2]
[358823001,1745472632312,-800.0,0.00021584,2]
[358823002,1745472632322,-800.0,0.00021589,2]
[358823003,1745472632333,-276.70534305,0.0002159,2]
[358823005,1745472632344,-800.0,0.000216,2]
[358823006,1745472632353,-1296.10813192,0.00021623,2]
[358823007,1745472632362,-800.0,0.00021637,2]
[358823008,1745472632371,-160.0,0.00021642,2]
[358823010,1745472632381,-420.89490186,0.00021642,2]
[358823012,1745472632390,-800.0,0.00021644,2]
[358823014,1745472632400,-800.0,0.00021652,2]
[358823016,1745472632409,-800.0,0.00021671,2]
[358823018,1745472632420,-1296.10813188,0.00021672,2]
[358823020,1745472632430,-800.0,0.00021695,2]
[358823021,1745472632440,-800.0,0.00021707,2]
[358823023,1745472632450,-314.62,0.00021707,3]
[358823025,1745472632460,-500.0,0.00021716,2]
[358823026,1745472632474,-160.0,0.00021716,2]
[358823027,1745472632485,-161.82741771,0.00021716,2]
[358823029,1745472632494,-11479.92801513,0.00021717,2]
[358823034,1745472632760,-370.784,0.00021717,2]
[358823037,1745472637768,-358149.28798487,0.00021717,2]
[358823038,1745472637778,-1296.10813188,0.0002172,2]
[358823039,1745472637788,-787.78274239,0.00021723,2]
[358823040,1745472637797,-800.0,0.00021739,2]
[358823041,1745472637807,-551.03056614,0.00021752,2]
[358823042,1745472637817,-89570.76607646,0.00021756,2]
[358823043,1745472637826,-18730.17844249,0.00021756,3]
[358823044,1745472637836,-800.0,0.00021756,2]
[358823045,1745472637846,-812.21725761,0.00021757,2]
[358823046,1745472637856,-1296.10813188,0.00021769,2]
[358823047,1745472637865,-500.0,0.00021773,2]
[358823048,1745472637875,-500.0,0.00021773,2]
[358823049,1745472637884,-500.0,0.00021773,2]
[358823050,1745472637895,-500.0,0.00021773,2]
[358823053,1745472637905,-500.0,0.00021773,2]
[358823081,1745472638082,-500.0,0.00021773,2]
[358823083,1745472638093,-500.0,0.00021773,2]
[358823085,1745472638102,-500.0,0.00021773,2]
[358823087,1745472638112,-300.0,0.00021773,2]
[358823089,1745472638122,-500.0,0.00021773,2]
[358823091,1745472638131,-511.29337322,0.00021773,2]
[358823093,1745472638141,-500.0,0.00021773,2]
[358823095,1745472638151,-500.0,0.00021773,2]
[358823097,1745472638161,-254.61317008,0.00021773,2]
[358823099,1745472638171,-800.0,0.00021773,2]
[358823101,1745472638181,-151.0,0.00021804,2]
[358823103,1745472638191,-800.0,0.00021808,2]
[358823105,1745472638200,-800.0,0.00021809,2]
[358823107,1745472638210,-1296.10813188,0.00021817,2]
[358823109,1745472638220,-800.0,0.00021822,2]
[358823112,1745472638230,-800.0,0.00021829,2]
[358823114,1745472638239,-800.0,0.00021832,2]
[358823116,1745472638249,-800.0,0.0002184,2]
[358823118,1745472638259,-800.0,0.00021854,2]
[358823120,1745472638268,-800.0,0.00021859,2]
[358823122,1745472638278,-507.41632033,0.00021916,2]
[358823124,1745472638287,-500.0,0.00021916,2]
[358823126,1745472638297,-500.0,0.00021916,2]
[358823128,1745472638307,-269.5589256,0.00021916,2]
[358823151,1745472638524,-151.0,0.00021917,2]
[358823153,1745472638534,-151.0,0.00021917,2]
[358823154,1745472638545,-153.24156,0.00021917,2]
[358823156,1745472638555,-152.770878,0.00021917,2]
[358823159,1745472638566,-151.0,0.00021917,2]
[358823161,1745472638576,-155.318486,0.00021917,2]
[358823162,1745472638586,-151.0,0.00021917,2]
[358823165,1745472638596,-151.0,0.00021917,2]
[358823167,1745472638607,-151.0,0.00021917,2]
[358823169,1745472638616,-220.099244,0.00021917,2]
[358823171,1745472638626,-151.0,0.00021917,2]
[358823173,1745472638635,-151.0,0.00021917,2]
[358823175,1745472638645,-151.0,0.00021917,2]
[358823177,1745472638655,-151.0,0.00021917,2]
[358823179,1745472638665,-153.422553,0.00021917,2]
[358823181,1745472638675,-153.20826,0.00021917,2]
[358823183,1745472638684,-151.0,0.00021917,2]
[358823185,1745472638695,-156.338475,0.00021917,2]
[358823187,1745472638705,-151.784006,0.00021917,2]
[358823189,1745472638714,-501.03187602,0.00021917,2]
[358823191,1745472638724,-500.0,0.00021917,2]
[358823194,1745472638746,-500.0,0.00021917,2]
[358823196,1745472638758,-500.0,0.00021917,2]
[358823198,1745472638768,-510.09070672,0.00021917,2]
[358823201,1745472638780,-500.0,0.00021917,2]
[358823203,1745472638790,-291.37036594,0.00021917,2]
[358823205,1745472638800,-501.04981886,0.00021917,2]
[358823207,1745472638811,-500.0,0.00021917,2]
[358823209,1745472638821,-501.11794792,0.00021917,2]
[358823211,1745472638831,-500.0,0.00021917,2]
[358823213,1745472638841,-151.0,0.00021917,2]
[358823215,1745472638851,-502.2921335,0.00021917,2]
[358823217,1745472638862,-355.56288096,0.00021917,2]
[358823219,1745472638872,-500.0,0.00021917,2]
[358823221,1745472638882,-151.0,0.00021917,2]
[358823223,1745472638893,-151.0,0.00021917,2]
[358823225,1745472638903,-151.0,0.00021917,2]
[358823227,1745472638913,-158.931469,0.00021917,2]
[358823229,1745472638924,-151.0,0.00021917,2]
[358823231,1745472638934,-151.0,0.00021917,2]
[358823233,1745472638944,-151.0,0.00021917,2]
[358823235,1745472638954,-151.0,0.00021917,2]
[358823237,1745472638964,-151.0,0.00021917,2]
[358823239,1745472638974,-151.0,0.00021917,2]
[358823241,1745472638984,-151.0,0.00021917,2]
[358823243,1745472638994,-502.34817361,0.00021917,2]
[358823246,1745472639005,-151.0,0.00021917,2]
[358823248,1745472639014,-151.0,0.00021917,2]
[358823250,1745472639025,-151.0,0.00021917,2]
[358823252,1745472639035,-151.0,0.00021917,2]
[358823254,1745472639046,-296.93125,0.00021917,2]
[358823256,1745472639056,-502.58216655,0.00021917,2]
[358823258,1745472639066,-502.26858678,0.00021917,2]
[358823259,1745472639076,-500.0,0.00021917,2]
[358823261,1745472639088,-151.0,0.00021917,2]
[358823262,1745472639098,-151.0,0.00021917,2]
[358823263,1745472639108,-151.0,0.00021917,2]
[358823264,1745472639118,-151.0,0.00021917,2]
[358823265,1745472639128,-501.95989591,0.00021917,2]
[358823267,1745472639140,-582.96485834,0.00021917,2]
[358823269,1745472639150,-151.0,0.00021917,2]
[358823270,1745472639163,-151.0,0.00021917,2]
[358823271,1745472639174,-210.942219,0.00021917,2]
[358823272,1745472639184,-502.36080311,0.00021917,2]
[358823273,1745472639194,-151.0,0.00021917,2]
[358823275,1745472639204,-500.0,0.00021917,2]
[358823276,1745472639214,-151.0,0.00021917,2]
[358823278,1745472639224,-151.0,0.00021917,2]
[358823279,1745472639236,-151.0,0.00021917,2]
[358823280,1745472639248,-151.0,0.00021917,2]
[358823281,1745472639257,-151.0,0.00021917,2]
[358823282,1745472639267,-162.44363,0.00021917,2]
[358823283,1745472639277,-500.0,0.00021917,2]
[358823284,1745472639287,-623.92209028,0.00021917,2]
[358823285,1745472639298,-500.0,0.00021917,2]
[358823286,1745472639309,-604.36,0.00021917,2]
[358823287,1745472639319,-500.0,0.00021917,2]
[358823288,1745472639329,-512.24761659,0.00021917,2]
[358823289,1745472639339,-500.0,0.00021917,2]
[358823290,1745472639354,-500.0,0.00021917,2]
[358823291,1745472639364,-10000.0,0.00021917,2]
[358823292,1745472639374,-10000.0,0.00021917,2]
[358823293,1745472639386,-10000.0,0.00021917,2]
[358823294,1745472639396,-10000.0,0.00021917,2]
[358823295,1745472639407,-10000.0,0.00021917,2]
[358823296,1745472639417,-10000.0,0.00021917,2]
[358823297,1745472639428,-365.03101003,0.00021917,2]
[358823298,1745472639438,-10000.0,0.00021917,2]
[358823299,1745472639448,-10000.0,0.00021917,2]
[358823300,1745472639459,-10000.0,0.00021917,2]
[358823301,1745472639472,-10000.0,0.00021917,2]
[358823302,1745472639485,-10000.0,0.00021917,2]
[358823303,1745472639497,-10000.0,0.00021917,2]
[358823304,1745472639508,-500.0,0.00021917,2]
[358823305,1745472639519,-10000.0,0.00021917,2]
[358823306,1745472639529,-10000.0,0.00021917,2]
[358823307,1745472639540,-10000.0,0.00021917,2]
[358823308,1745472639551,-10000.0,0.00021917,2]
[358823309,1745472639561,-10000.0,0.00021917,2]
[358823310,1745472639571,-10000.0,0.00021917,2]
[358823311,1745472639581,-10000.0,0.00021917,2]
[358823312,1745472639593,-10000.0,0.00021917,2]
[358823313,1745472639603,-10000.0,0.00021917,2]
[358823314,1745472639613,-10000.0,0.00021917,2]
[358823315,1745472639624,-10000.0,0.00021917,2]
[358823316,1745472639634,-8965.073085,0.00021917,2]
[358823317,1745472639644,-500.0,0.00021917,2]
[358823318,1745472639655,-500.0,0.00021917,2]
[358823319,1745472639665,-500.0,0.00021917,2]
[358823320,1745472639675,-500.0,0.00021917,2]
[358823321,1745472639685,-987.72,0.00021917,2]
[358823322,1745472639696,-500.0,0.00021917,2]
[358823323,1745472639706,-163.50651354,0.00021917,2]
[358823324,1745472639716,-242.10669742,0.00021917,2]
[358823325,1745472639726,-500.0,0.00021917,2]
[358823326,1745472639736,-500.0,0.00021917,2]
[358823327,1745472639746,-151.0,0.00021917,2]
[358823328,1745472639756,-151.0,0.00021917,2]
[358823329,1745472639766,-151.0,0.00021917,2]
[358823330,1745472639776,-151.0,0.00021917,2]
[358823331,1745472639786,-151.0,0.00021917,2]
[358823332,1745472639796,-151.0,0.00021917,2]
[358823333,1745472639806,-151.0,0.00021917,2]
[358823334,1745472639817,-151.0,0.00021917,2]
[358823335,1745472639827,-151.0,0.00021917,2]
[358823336,1745472639836,-153.5998,0.00021917,2]
[358823337,1745472639846,-500.0,0.00021917,2]
[358823338,1745472639856,-500.0,0.00021917,2]
[358823339,1745472639866,-500.0,0.00021917,2]
[358823340,1745472639876,-653.14,0.00021917,2]
[358823341,1745472639887,-500.0,0.00021917,2]
[358823342,1745472639897,-507.72796452,0.00021917,2]
[358823343,1745472639908,-504.42577727,0.00021917,2]
[358823344,1745472639918,-500.0,0.00021917,2]
[358823345,1745472639928,-500.0,0.00021917,2]
[358823346,1745472639938,-500.0,0.00021917,2]
[358823347,1745472639948,-500.0,0.00021917,2]
[358823348,1745472639958,-500.0,0.00021917,2]
[358823349,1745472639968,-500.0,0.00021917,2]
[358823350,1745472639978,-860.96,0.00021917,2]
[358823351,1745472639989,-500.0,0.00021917,2]
[358823352,1745472639999,-500.0,0.00021917,2]
[358823353,1745472640009,-500.0,0.00021917,2]
[358823354,1745472640019,-883.91,0.00021917,2]
[358823355,1745472640030,-500.0,0.00021917,2]
[358823356,1745472640039,-511.24805889,0.00021917,2]
[358823357,1745472640049,-500.0,0.00021917,2]
[358823358,1745472640059,-500.0,0.00021917,2]
[358823359,1745472640069,-78.77211708,0.00021917,2]
[358823392,1745473007095,66642.63167871,0.00018,2]
[358823393,1745473007731,-547.05069488,0.00018,2]
[358823475,1745473838112,-191.37972229,0.00018448,2]
[358823476,1745473838123,-500.0,0.00018546,2]
[358823477,1745473838133,-222.41137877,0.00018546,2]
[358823478,1745473838143,-3033.4520739,0.00018854,2]
[358823479,1745473838152,-192.558123,0.00018857,2]
[358823480,1745473838162,-372.22561252,0.000189,2]
[358823481,1745473838173,-500.0,0.00019714,2]
[358823482,1745473838183,-500.0,0.00019714,2]
[358823483,1745473838193,-152.10805501,0.00019714,2]
[358823484,1745473838203,-515.45746238,0.00019714,2]
[358823485,1745473838215,-306.93293412,0.00019714,2]
[358823486,1745473838224,-300.0,0.00019715,2]
[358823487,1745473838234,-565.0,0.00019715,2]
[358823488,1745473838244,-9124.27705071,0.00019716,2]
[358823489,1745473838255,-22999.999999,0.000198,5]
[358823490,1745473838265,-30515.90506526,0.000199,2]
[358823491,1745473838275,-1615.15989082,0.000199,2]
[358823492,1745473838285,-151.0,0.00019988,2]
[358823493,1745473838294,-5992.13263222,0.0002,2]
[358823494,1745473838306,-92315.23833664,0.0002,2]
[358823495,1745473838316,-500.0,0.0002,2]
[358823496,1745473838325,-500.0,0.0002,2]
[358823497,1745473838335,-529.90378771,0.0002,2]
[358823499,1745473838345,-500.0,0.0002,2]
[358823501,1745473838355,-500.0,0.0002,2]
[358823502,1745473838364,-500.42670745,0.0002,2]
[358823503,1745473838374,-502.46609455,0.0002,2]
[358823504,1745473838384,-500.0,0.0002,2]
[358823505,1745473838394,-500.0,0.0002,2]
[358823506,1745473838404,-501.50458303,0.0002,2]
[358823508,1745473838414,-500.0,0.0002,2]
[358823510,1745473838424,-500.0,0.0002,2]
[358823512,1745473838434,-501.84554274,0.0002,2]
[358823514,1745473838445,-500.0,0.0002,2]
[358823516,1745473838454,-500.0,0.0002,2]
[358823518,1745473838464,-500.0,0.0002,2]
[358823520,1745473838473,-500.0,0.0002,2]
[358823522,1745473838482,-500.0,0.0002,2]
[358823523,1745473838492,-500.63479341,0.0002,2]
[358823524,1745473838501,-500.0,0.0002,2]
[358823526,1745473838510,-500.0,0.0002,2]
[358823528,1745473838520,-500.0,0.0002,2]
[358823530,1745473838529,-500.0,0.0002,2]
[358823532,1745473838538,-500.0,0.0002,2]
[358823534,1745473838548,-300.0,0.0002,2]
[358823536,1745473838557,-500.0,0.0002,2]
[358823538,1745473838566,-500.0,0.0002,2]
[358823540,1745473838576,-500.0,0.0002,2]
[358823542,1745473838585,-500.0,0.0002,2]
[358823544,1745473838595,-500.0,0.0002,2]
[358823546,1745473838604,-500.0,0.0002,2]
[358823548,1745473838614,-254.61317008,0.0002,2]
[358823549,1745473838623,-500.0,0.0002,2]
[358823552,1745473838633,-500.0,0.0002,2]
[358823553,1745473838643,-500.0,0.0002,2]
[358823555,1745473838652,-151.0,0.00020821,2]
[358823557,1745473838662,-215.0738,0.00020821,2]
[358823559,1745473838672,-653.33404451,0.0002099,2]
[358823561,1745473838682,-157.2,0.00021,2]
[358823563,1745473838692,-4000.0,0.000214,2]
[358823565,1745473838702,-420.0,0.00021474,2]
[358823567,1745473838712,-800.0,0.00021581,2]
[358823569,1745473838722,-800.0,0.000216,2]
[358823571,1745473838732,-777.66487916,0.00021617,2]
[358823573,1745473838741,-824.43451522,0.00021617,2]
[358823575,1745473838751,-800.0,0.00021619,2]
[358823577,1745473838761,-800.0,0.00021631,2]
[358823579,1745473838770,-600.0,0.00021644,2]
[358823581,1745473838781,-800.0,0.00021657,2]
[358823583,1745473838790,-777.66487912,0.00021667,2]
[358823585,1745473838800,-874.3947909,0.00021697,2]
[358823587,1745473838810,-151.0,0.000217,4]
[358823589,1745473838819,-800.0,0.00021716,2]
[358823591,1745473838829,-151.899093,0.00021717,2]
[358823593,1745473838839,-10000.0,0.00021717,2]
[358823595,1745473838850,-151.0,0.00021717,2]
[358823597,1745473838859,-777.66487912,0.00021717,2]
[358823599,1745473838869,-800.0,0.00021754,2]
[358823601,1745473838879,-800.0,0.00021755,2]
[358823603,1745473838888,-10000.0,0.00021756,2]
[358823605,1745473838897,-787.78274239,0.0002176,2]
[358823607,1745473838907,-777.66487912,0.00021767,2]
[358823609,1745473838916,-538.81330853,0.00021778,2]
[358823610,1745473838926,-800.0,0.00021789,2]
[358823612,1745473838935,-800.0,0.0002181,2]
[358823614,1745473838945,-269.5589256,0.00021815,2]
[358823615,1745473838954,-500.0,0.00021815,2]
[358823616,1745473838964,-261768.58049252,0.00021816,2]
[358823617,1745473838976,-7501.58595961,0.00021816,2]
[358823618,1745473839012,-728.18349552,0.00021816,2]
[358823711,1745473843202,-751.18808791,0.00021816,2]
[358823718,1745473846084,-760.602136,0.00021816,2]
[358823742,1745475032294,-160.0,0.00018256,2]
[358823743,1745475032304,-300.0,0.00018269,2]
[358823744,1745475032313,-300.0,0.00018269,2]
[358823745,1745475032323,-1200.0,0.00018269,2]
[358823746,1745475032333,-500.0,0.0001827,2]
[358823747,1745475032342,-500.0,0.0001827,2]
[358823748,1745475032352,-500.0,0.0001827,2]
[358823749,1745475032361,-500.0,0.0001827,2]
[358823750,1745475032371,-500.0,0.0001827,2]
[358823751,1745475032380,-500.0,0.0001827,2]
[358823752,1745475032391,-313.95697712,0.0001827,2]
[358823753,1745475032401,-310.28612547,0.0001827,2]
[358823754,1745475032412,-500.0,0.0001827,2]
[358823755,1745475032424,-500.0,0.0001827,2]
[358823756,1745475032433,-500.0,0.0001827,2]
[358823757,1745475032443,-500.0,0.0001827,2]
[358823758,1745475032454,-500.0,0.0001827,2]
[358823759,1745475032464,-500.0,0.0001827,2]
[358823760,1745475032473,-500.0,0.0001827,2]
[358823761,1745475032483,-500.0,0.0001827,2]
[358823762,1745475032493,-500.0,0.0001827,2]
[358823763,1745475032503,-500.0,0.0001827,2]
[358823765,1745475032513,-500.0,0.0001827,2]
[358823767,1745475032523,-500.0,0.0001827,2]
[358823768,1745475032533,-444.86206111,0.0001827,2]
[358823769,1745475032546,-55.13793889,0.0001827,2]
[358823770,1745475032555,-500.0,0.0001827,2]
[358823771,1745475032565,-500.0,0.0001827,2]
[358823772,1745475032575,-500.0,0.0001827,2]
[358823773,1745475032585,-500.0,0.0001827,2]
[358823774,1745475032595,-500.0,0.0001827,2]
[358823775,1745475032606,-500.0,0.0001827,2]
[358823776,1745475032617,-500.0,0.0001827,2]
[358823777,1745475032626,-500.0,0.0001827,2]
[358823778,1745475032636,-500.0,0.0001827,2]
[358823779,1745475032647,-500.0,0.0001827,2]
[358823780,1745475032658,-500.0,0.0001827,2]
[358823781,1745475032673,-500.0,0.0001827,2]
[358823782,1745475032683,-500.0,0.0001827,2]
[358823783,1745475032692,-526.58137854,0.0001827,2]
[358823784,1745475032702,-500.0,0.0001827,2]
[358823785,1745475032712,-500.0,0.0001827,2]
[358823786,1745475032722,-500.0,0.0001827,2]
[358823787,1745475032732,-500.0,0.0001827,2]
[358823788,1745475032742,-500.0,0.0001827,2]
[358823789,1745475032752,-500.0,0.0001827,2]
[358823790,1745475032761,-500.0,0.0001827,2]
[358823791,1745475032771,-500.0,0.0001827,2]
[358823792,1745475032781,-250.0,0.0001827,2]
[358823793,1745475032790,-358.12697751,0.0001827,2]
[358823794,1745475032800,-2997.4369331,0.00018278,2]
[358823795,1745475032809,-269.97603828,0.00018348,2]
[358823796,1745475032819,-279.60619602,0.00018448,2]
[358823797,1745475032828,-500.0,0.00019178,2]
[358823798,1745475032838,-357.89605001,0.00019178,2]
[358823799,1745475032847,-151.0,0.0001931,2]
[358823800,1745475032857,-294.04362701,0.00019322,2]
[358823801,1745475032869,-24605.95637299,0.00019322,2]
[358823802,1745475032878,-192.558124,0.0001954,2]
[358823803,1745475032888,-248.15040835,0.00019716,2]
[358823804,1745475032898,-420.0,0.00019928,2]
[358823805,1745475032908,-151.0,0.00020821,2]
[358823806,1745475032919,-215.0738,0.00020821,2]
[358823807,1745475032928,-547.0506949,0.0002085,2]
[358823808,1745475032938,-653.33404451,0.0002099,2]
[358823809,1745475032948,-150.0,0.00021,2]
[358823810,1745475032959,-157.2,0.00021,2]
[358823812,1745475032969,-315.48837797,0.000215,2]
[358823814,1745475032980,-787.78274239,0.00021558,2]
[358823816,1745475032990,-800.0,0.00021621,2]
[358823817,1745475032999,-800.0,0.00021622,2]
[358823818,1745475033009,-838.17663523,0.00021625,2]
[358823820,1745475033020,-800.0,0.00021625,2]
[358823822,1745475033030,-800.0,0.0002165,2]
[358823824,1745475033041,-800.0,0.00021655,2]
[358823827,1745475033051,-402.58255952,0.00021656,2]
[358823830,1745475033097,-397.41744048,0.00021656,2]
[358823831,1745475033107,-69.11922174,0.00021657,2]
[358823832,1745475033251,-500.0,0.00019178,2]
[358823833,1745475033261,-439.63620538,0.00021657,2]
[358823834,1745475033271,-800.0,0.00021665,2]
[358823835,1745475033281,-588.76417825,0.00021665,2]
[358823836,1745475033294,-211.23582175,0.00021665,2]
[358823837,1745475033304,-148.10789905,0.00021673,2]
[358823838,1745475033316,-690.06873618,0.00021673,2]
[358823839,1745475033326,-800.0,0.00021676,2]
[358823840,1745475033336,-800.0,0.00021693,2]
[358823841,1745475033347,-874.3947909,0.00021697,2]
[358823842,1745475033356,-251.0,0.000217,2]
[358823843,1745475033366,-21303.44368907,0.00021716,2]
[358823879,1745475038223,-358.12697751,0.00018269,2]
[358823881,1745475038235,-206.72607638,0.00018269,2]
[358823883,1745475038245,-210.82022366,0.00019178,2]
[358823886,1745475038255,-348696.55631093,0.00021716,2]
[358823888,1745475038265,-800.0,0.00021718,2]
[358823890,1745475038276,-838.17663523,0.00021721,2]
[358823892,1745475038286,-587.0,0.00021738,2]
[358823894,1745475038295,-838.17663523,0.00021769,2]
[358823896,1745475038305,-800.0,0.00021779,2]
[358823897,1745475038314,-838.17663523,0.00021817,2]
[358823900,1745475038324,-563.24782375,0.00021833,2]
[358823901,1745475038334,-1090.56891784,0.00021861,2]
[358823903,1745475038343,-420.89490186,0.000219,2]
[358823906,1745475038353,-151.0,0.000219,4]
[358823908,1745475038363,-150.0,0.000219,2]
[358823910,1745475038373,-174.266,0.00021909,2]
[358823912,1745475038382,-500.0,0.00021915,2]
[358823914,1745475038392,-269.5589256,0.00021915,2]
[358823916,1745475038401,-500.0,0.00021915,2]
[358823917,1745475038410,-508.40541627,0.00021915,2]
[358823919,1745475038419,-199611.44926309,0.00021916,2]
[358823922,1745475038429,-44872.14685091,0.00021916,3]